Cogmind - Beta 10.2 @@@ ROGUE MODE // 2021.09.13 @ 18:40:07 Player: Rathori Result: Destroyed by B-75 Beast with Magnetic Acceleration Cannon Performance ------------- Evolutions (1) 500 Regions Visited (5) 1000 Robots Destroyed (47) 235 Value Destroyed (1342) 1342 Prototype IDs (7) 140 Alien Tech Used (0) 0 Bonus (798) 798 TOTAL SCORE: 4015 Bonus ------- Follower Combat Kills 198 Met Imprinter 300 Was Imprinted 300 Cogmind --------- Core Integrity 0/400 Matter 300/300 Energy 100/100 System Corruption 0% Temperature Cool (12) Movement Walking (120) Location -6/Proximity Caves Parts ------- > --- POWER (1) -------- (None) > --- PROPULSION (4) --- Aluminum Leg Carbon-fiber Leg Flexi-carbon Leg > --- UTILITY (2) ------ High-capacity Storage Unit Experimental Hacking Suite > --- WEAPON (2) ------- (None) > --- INVENTORY (12) --- Ion Engine Light Angular Momentum Engine Advanced Heat Sink Improved Cooling System Experimental Sensor Array Transmission Jammer Relay Coupler [Grunt] (43) Relay Coupler [Programmer] (75) Trap Extractor Hacking Drone Bay (1/1) CR-A16's Pointy Stick Peak State ------------ > --- POWER ------------ Angular Momentum Engine > --- PROPULSION ------- Aluminum Leg Carbon-fiber Leg Carbon-fiber Leg Flexi-carbon Leg > --- UTILITY ---------- High-capacity Storage Unit Experimental Hacking Suite > --- WEAPON ----------- Assault Rifle Gauss Cannon > --- INVENTORY -------- Ion Engine Improved Deuterium Engine Light Angular Momentum Engine Advanced Heat Sink Experimental Sensor Array Transmission Jammer Relay Coupler [Grunt] Relay Coupler [Programmer] Trap Extractor Hacking Drone Bay Rocket Launcher CR-A16's Pointy Stick [Rating: 36] Favorites ----------- Power Ion Engine Engine Ion Engine Propulsion Aluminum Leg Leg Aluminum Leg Utility High-capacity Storage Unit Device Experimental Sensor Array Storage High-capacity Storage Unit Processor Targeting Computer Hackware Experimental Hacking Suite Weapon Assault Rifle Energy Gun Improved Medium Laser Ballistic Gun Assault Rifle Ballistic Cannon Light Cannon Launcher Rocket Launcher Special Weapon Mining Laser Build | -11 -10 -9 -9 -7 -6 ------- Run | Scr Mat Mat Min Zio Pro Slots Evolved 2 | . . 2 . . . Power . | . . . . . . Propulsion 2 | . . 2 . . . Utility . | . . . . . . Weapon . | . . . . . . Parts Attached 57 | 6 12 26 1 4 8 Power 10 | 1 2 3 . 1 3 Engine 10 | 1 2 3 . 1 3 Core . | . . . . . . Reactor . | . . . . . . Propulsion 20 | 2 5 10 . . 3 Treads . | . . . . . . Leg 20 | 2 5 10 . . 3 Wheel . | . . . . . . Hover . | . . . . . . Flight . | . . . . . . Utility 8 | 1 3 . 1 3 . Device 4 | . 1 . 1 2 . Storage 2 | 1 1 . . . . Processor 1 | . 1 . . . . Hackware 1 | . . . . 1 . Protection . | . . . . . . Artifact . | . . . . . . Weapon 19 | 2 2 13 . . 2 Energy Gun 1 | . . 1 . . . Energy Cannon . | . . . . . . Ballistic Gun 13 | 2 2 9 . . . Ballistic Cannon 3 | . . 2 . . 1 Launcher 1 | . . . . . 1 Special Weapon 1 | . . 1 . . . Impact Weapon . | . . . . . . Slashing Weapon . | . . . . . . Piercing Weapon . | . . . . . . Special Melee Weapon . | . . . . . . Unidentified Prototypes 3 | . . . 1 2 . Parts Lost 19 | . . 13 . . 6 Power 3 | . . 1 . . 2 Propulsion 8 | . . 7 . . 1 Utility . | . . . . . . Weapon 8 | . . 5 . . 3 Highest Loss Streak 9 | . . 9 . . 3 Average Slot Usage (%) 84 | . 96 88 77 77 95 Engine 11 | . 14 10 11 11 9 Leg 28 | . 28 33 22 22 42 Device 3 | . 1 . 3 6 . Storage 11 | . 14 11 11 11 11 Processor 4 | . 9 11 7 . . Hackware 3 | . . . . 4 11 Ballistic Gun 13 | . 28 18 11 11 4 Ballistic Cannon 7 | . . 2 11 11 11 Naked Turns . | . . . . . . Heaviest Build 54 | 13 41 43 43 47 54 Greatest Support 60 | 20 20 40 20 20 60 Greatest Overweight (x) 4 | 1 2 4 2 2 2 Average Overweight (x) 1 | . 1 1 2 2 . Largest Inventory Capacity 12 | 6 12 12 12 12 12 Average Capacity 11 | 5 9 12 12 12 12 Most Carried 12 | 2 12 12 9 12 12 Average Carried 9 | 1 7 10 8 10 10 Final Capacity 12 | 6 12 12 12 12 12 Final Carried 12 | 2 12 8 8 12 11 Class Distribution -------------------- 67% | Mutant 32% | Scavenger-Mutant Dominant Class ---------------- Mutant | -10/Materials Scavenger-Mutant | -9/Materials Mutant | -9/Mines Mutant | -7/Zion Scavenger-Mutant | -6/Proximity Caves Resources | -11 -10 -9 -9 -7 -6 ----------- Run | Scr Mat Mat Min Zio Pro Matter Collected 1640 | 284 330 647 . 50 329 Remotely . | . . . . . . Salvage Created 1793 | 93 530 893 . . 277 Parts 93 | 1 27 57 . . 8 Haulers Intercepted 1 | . . 1 . . . Recyclers Shooed 3 | 1 2 . . . . Parts Field Recycled . | . . . . . . Retrieved Matter . | . . . . . . Parts Self-Destructed 9 | . . . . . 9 Prevented 4 | . . . . . 4 Kills | -11 -10 -9 -9 -7 -6 ------- Run | Scr Mat Mat Min Zio Pro Combat Hostiles Destroyed 37 | . 9 20 . . 8 Guns 29 | . 9 19 . . 1 Cannons 4 | . . 1 . . 3 AOE 4 | . . . . . 4 Classes Destroyed 9 | 1 3 3 . . 2 Builder 1 | . . 1 . . . Hauler 1 | . . 1 . . . Recycler 4 | 1 2 1 . . . Watcher 4 | . 2 2 . . . Swarmer 11 | . 3 8 . . . Grunt 18 | . 6 6 . . 6 Duelist 1 | . . . . . 1 Sentry 6 | . . 6 . . . Hunter 1 | . . . . . 1 Best Kill Streak 6 | 1 6 5 . . 3 Combat Bots Only 5 | . 5 5 . . 3 Max Kills in Single Turn 2 | 1 1 1 . . 2 Gunslinging . | . . . . . . Exploded 2 | . . . . . 2 Melee . | . . . . . . Uniques/NPCs Destroyed . | . . . . . . Combat | -11 -10 -9 -9 -7 -6 -------- Run | Scr Mat Mat Min Zio Pro Damage Taken 2836 | . 472 1701 . . 663 Core 458 | . 36 331 . . 91 Absorbed by Shields . | . . . . . . Core Remaining (%) 92 | 100 85 . . . . Volleys Fired 149 | 4 35 84 . . 26 Largest 2 | 2 2 2 . . 2 Hottest 100 | 40 40 100 . . 81 Shots Fired 278 | 8 70 154 . . 46 Gun 227 | 8 70 135 . . 14 Cannon 36 | . . 10 . . 26 Launcher 6 | . . . . . 6 Special 9 | . . 9 . . . Kinetic 263 | 8 70 145 . . 40 Thermal 9 | . . 9 . . . Explosive 6 | . . . . . 6 Electromagnetic . | . . . . . . Robot Hit Streak 12 | 3 8 9 . . 12 Robot Miss Streak 3 | 2 2 3 . . 3 Penetration Max . | . . . . . . Secondary Targets 6 | . 2 4 . . . Max Gunslinging Chain 1 | . 1 1 . . . Shots Hit Robots 177 | 5 45 94 . . 33 Core Hits 81 | 2 21 37 . . 21 Critical Hits 3 | . 1 1 . . 1 Critical Kills . | . . . . . . Critical Parts Destroyed 3 | . 1 1 . . 1 Melee Attacks . | . . . . . . Impact . | . . . . . . Slashing . | . . . . . . Piercing . | . . . . . . Sneak Attacks . | . . . . . . Combat Hostiles . | . . . . . . Follow-up Attacks . | . . . . . . Damage Inflicted 3184 | 72 562 1390 . . 1160 Guns 2000 | 72 562 1260 . . 106 Cannons 548 | . . 130 . . 418 Explosions 636 | . . . . . 636 Melee . | . . . . . . Ramming . | . . . . . . Kinetic 2548 | 72 562 1390 . . 524 Thermal . | . . . . . . Explosive 636 | . . . . . 636 Electromagnetic . | . . . . . . Impact . | . . . . . . Slashing . | . . . . . . Piercing . | . . . . . . Highest Corruption . | . . . . . . Average Corruption . | . . . . . . Corruption Purged . | . . . . . . Overload Shots . | . . . . . . Overflow Damage 45 | . . . . . 45 Projectiles 4 | . . . . . 4 Explosions 41 | . . . . . 41 Melee . | . . . . . . Knockbacks 5 | . . 4 . . 1 Impact . | . . . . . . Kinetic 4 | . . 3 . . 1 Secondary 1 | . . 1 . . . Self-Inflicted Damage . | . . . . . . Shots . | . . . . . . Rammed . | . . . . . . Targets Rammed . | . . . . . . Kicked . | . . . . . . Crushed . | . . . . . . Highest Temperature 144 | . 2 8 . . 144 Average Temperature 29 | . 2 4 . . 43 Received Heat Transfer 714 | . 174 390 . . 150 Siege Activations . | . . . . . . Robots Corrupted . | . . . . . . Combat Hostiles . | . . . . . . Parts Fried . | . . . . . . Impact Corruptions . | . . . . . . Robots Melted . | . . . . . . Combat Hostiles . | . . . . . . Parts Melted . | . . . . . . Heat Transferred . | . . . . . . Parts Sabotaged . | . . . . . . Parts Stolen . | . . . . . . Parts Stripped . | . . . . . . Power Chain Reactions . | . . . . . . Missiles Intercepted . | . . . . . . Alert | -11 -10 -9 -9 -7 -6 ------- Run | Scr Mat Mat Min Zio Pro Peak Influence 270 | 5 270 269 43 . . Initial 43 | . 3 40 43 . . Average 120 | 1 117 164 34 . . Maximum Alert Level 1 | . 1 1 . . . Low Security (%) 74 | 100 85 57 100 . . Level 1 25 | . 14 42 . . . Level 2 . | . . . . . . Level 3 . | . . . . . . Level 4 . | . . . . . . Level 5 . | . . . . . . High Security . | . . . . . . Max Security . | . . . . . . Squads Dispatched 4 | . 1 3 . . . Investigation 1 | . . 1 . . . Extermination . | . . . . . . Reinforcement 3 | . 1 2 . . . Assault . | . . . . . . Garrison . | . . . . . . Intercept . | . . . . . . Construction Impeded . | . . . . . . Haulers Reinforced . | . . . . . . Stealth | -11 -10 -9 -9 -7 -6 --------- Run | Scr Mat Mat Min Zio Pro Distress Signals 1 | . 1 . . . . Communications Jammed . | . . . . . . Distress Signals . | . . . . . . Times Spotted 58 | . 15 29 . . 14 Peak Tracking Total 8 | . 6 8 . . 4 Tactical Retreats 3 | . . 1 . . 2 Traps | -11 -10 -9 -9 -7 -6 ------- Run | Scr Mat Mat Min Zio Pro Traps Triggered . | . . . . . . Indirectly . | . . . . . . Trap Hack Attempts . | . . . . . . Triggered . | . . . . . . Disarmed 4 | . 4 . . . . Reprogrammed . | . . . . . . Reused . | . . . . . . Traps Extracted . | . . . . . . Installed . | . . . . . . Triggered . | . . . . . . Machines | -11 -10 -9 -9 -7 -6 ---------- Run | Scr Mat Mat Min Zio Pro Machines Disabled . | . . . . . . Max in Single Turn . | . . . . . . Machines Sabotaged . | . . . . . . Garrisons Compromised . | . . . . . . Overloaded Fab Kills . | . . . . . . Fab Network Shutdowns . | . . . . . . Hacking | -11 -10 -9 -9 -7 -6 --------- Run | Scr Mat Mat Min Zio Pro Machines Accessed 7 | . 5 2 . . . Terminals 7 | . 5 2 . . . Fabricators . | . . . . . . Repair Stations . | . . . . . . Recycling Units . | . . . . . . Scanalyzers . | . . . . . . Garrison Access . | . . . . . . Total Hacks 22 | . 12 10 . . . Successful 11 | . 6 5 . . . Failed 11 | . 6 5 . . . Catastrophic 2 | . 1 1 . . . Database Lockouts . | . . . . . . Manual 1 | . . . . 1 . Terminals 22 | . 12 10 . . . Fabricators . | . . . . . . Repair Stations . | . . . . . . Recycling Units . | . . . . . . Scanalyzers . | . . . . . . Garrison Access . | . . . . . . Terminal Hacks 11 | . 6 5 . . . Record 1 | . . 1 . . . Prototype ID Bank 2 | . 1 1 . . . Emergency Access Points 1 | . 1 . . . . Terminal Index 1 | . 1 . . . . Disarm Traps 1 | . 1 . . . . Patrol Status 1 | . . 1 . . . Investigation Status 1 | . . 1 . . . Hauler Manifests 1 | . 1 . . . . Zone Layout 2 | . 1 1 . . . Fabricator Hacks . | . . . . . . Repair Station Hacks . | . . . . . . Recycling Unit Hacks . | . . . . . . Scanalyzer . | . . . . . . Garrison Access Hacks . | . . . . . . Unauthorized Hacks . | . . . . . . Terminals . | . . . . . . Fabricators . | . . . . . . Repair Stations . | . . . . . . Recycling Units . | . . . . . . Scanalyzers . | . . . . . . Garrison Access . | . . . . . . Data Cores Recovered . | . . . . . . Used . | . . . . . . Hacking Detections 5 | . 3 2 . . . Full Trace Events 2 | . . 2 . . . Feedback Events . | . . . . . . Feedback Blocked . | . . . . . . Robot Schematics Acquired . | . . . . . . Robots Built . | . . . . . . Matter . | . . . . . . Time . | . . . . . . Total Robot Build Rating . | . . . . . . Part Schematics Acquired . | . . . . . . Parts Built . | . . . . . . Matter . | . . . . . . Time . | . . . . . . Total Part Build Rating . | . . . . . . Parts Repaired . | . . . . . . Time . | . . . . . . Parts Recycled . | . . . . . . Recycled Matter . | . . . . . . Retrieved Matter . | . . . . . . Retrieved Components . | . . . . . . Parts Scanalyzed . | . . . . . . Part Schematics Acquired . | . . . . . . Parts Damaged . | . . . . . . Bothacking | -11 -10 -9 -9 -7 -6 ------------ Run | Scr Mat Mat Min Zio Pro Used RIF Installer . | . . . . . . Robots Hacked . | . . . . . . Non-combat . | . . . . . . Combat . | . . . . . . Robot Hacks Applied . | . . . . . . Relay Couplers Released . | . . . . . . Robots Rewired . | . . . . . . Allies Hacked . | . . . . . . Hacks Repelled . | . . . . . . Allies | -11 -10 -9 -9 -7 -6 -------- Run | Scr Mat Mat Min Zio Pro Total Allies 4 | . . . . 4 . Largest Group 4 | . . . . 4 4 Highest-Rated Group 146 | . . . . 146 146 Highest-Rated Ally 37 | . . . . 37 37 Total Orders . | . . . . . . Ally Attacks 31 | . . . . . 31 Total Damage 641 | . . . . . 641 Kills 5 | . . . . . 5 Allies Corrupted . | . . . . . . Allies Melted . | . . . . . . Intel | -11 -10 -9 -9 -7 -6 ------- Run | Scr Mat Mat Min Zio Pro Robot Analysis Total . | . . . . . . Derelict Logs Recovered 4 | . . . 1 2 1 Drone Launches . | . . . . . . Drone Recoveries . | . . . . . . Exploration | -11 -10 -9 -9 -7 -6 ------------- Run | Scr Mat Mat Min Zio Pro Turns Passed 4987 | 96 485 1266 493 1845 802 Spaces Moved 2683 | 65 224 577 273 1009 535 Core 9 | 9 . . . . . Treads . | . . . . . . Legs 2674 | 56 224 577 273 1009 535 Wheels . | . . . . . . Hover . | . . . . . . Flight . | . . . . . . Fastest Speed 50 | 50 120 150 180 180 120 Average Speed 160 | 113 152 158 180 180 122 Slowest Speed 240 | 120 180 240 180 180 180 Overloaded Moves . | . . . . . . Propulsion Burnouts . | . . . . . . Robots Hopped . | . . . . . . Cave-ins Triggered . | . . . . . . Exploration Rate (%) 49 | 3 37 44 55 88 70 Regions Visited 5 Branch Regions 3 Pre-discovered Areas 1 | . . . . 1 . Known Exits Taken . | . . . . . . Unknown Exits Taken 5 | 1 1 1 1 1 . Scrap Searched 4 | . . . . 3 1 Spaces Dug 9 | . . 9 . . . Terrain Destroyed 37 | . . 9 . . 28 Melee . | . . . . . . Projectile 16 | . . 9 . . 7 AOE 21 | . . . . . 21 Terrain Rammed . | . . . . . . Walls Destroyed . | . . . . . . Machines Disabled . | . . . . . . Actions | -11 -10 -9 -9 -7 -6 --------- Run | Scr Mat Mat Min Zio Pro Total 3069 | 77 293 750 274 1038 637 Wait 150 | . 19 56 . 16 59 Move 2678 | 64 223 576 272 1008 535 Hop . | . . . . . . Pick Up 21 | 3 2 5 1 7 3 Fast Attach 11 | 5 1 2 . . 3 Attach 14 | 1 . 11 . . 2 Detach . | . . . . . . Swap 32 | . 11 13 1 4 3 Drop 14 | . 2 3 . 3 6 Fire 149 | 4 35 84 . . 26 Melee . | . . . . . . Ram . | . . . . . . Kick . | . . . . . . Crush . | . . . . . . Escape Stasis . | . . . . . . Rewire . | . . . . . . Trap . | . . . . . . Miscellaneous . | . . . . . . Route ------- -11/Scrapyard -10/Materials (discovered 2 exits: *Mat x2) -9/Materials -9/Mines (discovered 3 exits: [*Mat] / [*Exi] / *Zio) -7/Zion -6/Proximity Caves History --------- Turn | Location | Event 3 | -11/Scrapyard | Discovered new exit (range 15) 97 | -11/Scrapyard | Entered Materials 262 | -10/Materials | Discovered new exit (range 3) 315 | -10/Materials | Build established: Mutant 555 | -10/Materials | Discovered new exit (range 9) 582 | -10/Materials | Entered another Materials area 582 | -9/Materials | Evolved 2 slots: Propulsion x2 889 | -9/Materials | Build established: Scavenger-Mutant 1444 | -9/Materials | Core integrity fell below 50% 1475 | -9/Materials | Core integrity fell below 20% 1489 | -9/Materials | Lost 9 parts (1p5n3w) 1576 | -9/Materials | Discovered new exit (range 7) 1753 | -9/Materials | Build established: Mutant 1848 | -9/Materials | Entered Mines 1901 | -9/Mines | Learned 8 Materials zone layouts 2108 | -9/Mines | Discovered new exit (range 5) 2163 | -9/Mines | Found a damaged Exp. Sensor Array with a note attached 2167 | -9/Mines | Found Prototype Device 2168 | -9/Mines | Identified Exp. Sensor Array 2177 | -9/Mines | Deemed a non-threat by the Exiles lab entrance 2177 | -9/Mines | Discovered new exit (range 5) 2307 | -9/Mines | A Derelict revealed a hidden shortcut to a safe place 2341 | -9/Mines | Entered Zion 2457 | -7/Zion | Learned Factory emergency access door positions 2597 | -7/Zion | Learned location of 1 exit from Factory 2662 | -7/Zion | Found CR-A16's Pointy Stick 2826 | -7/Zion | Imprinted 2828 | -7/Zion | Declared Zion's savior 3044 | -7/Zion | Given the Hacking Drone Bay 3044 | -7/Zion | Found Prototype Device 3045 | -7/Zion | Identified Hacking Drone Bay 3097 | -7/Zion | Learned location of 1 exit from Factory 3205 | -7/Zion | Learned location of Recycling (-7) 3262 | -7/Zion | Found Relay Coupler [Programmer] 3473 | -7/Zion | Found Prototype Hackware 3474 | -7/Zion | Identified Exp. Hacking Suite 4152 | -7/Zion | Discovered new exit (range 14) 4186 | -7/Zion | Entered Proximity Caves 4186 | -6/Proximity Caves | Accompanied by 4 allies 4552 | -6/Proximity Caves | Build established: Scavenger-Mutant 4915 | -6/Proximity Caves | Spotted B-75 Beast 4988 | -6/Proximity Caves | Destroyed by B-75 Beast with Magnetic Acceleration Cannon Last Messages --------------- Destroyed Lgt. Angular Momentum Engine. The unstable cave ceiling collapses. G-50 Soldier destroyed. The unstable cave ceiling collapses. Acquired 11 matter. Acquired 12 matter. Acquired 35 matter. The unstable cave ceiling collapses. Acquired 18 matter. Knocked back. Rocket Launcher destroyed. Searching scrap... Found Imp. Cooling System. Found Shield Generator. Found 25 Matter. Acquired 10 matter. Acquired Imp. Cooling System. Imp. Deuterium Engine destroyed. Gauss Cannon destroyed. Carbon-fiber Leg destroyed. Map ----- +----------------------------------------------------+ | ?????????????????????????????????????????????????? | | ?????????????????????????????????????????????????? | | ?????????????????????????????????????????????????? | | ?????????????????????????????????????????????????? | | ?????????????????????????????????????????????????? | | ?????????????????????????????????????????????????? | | ?????????????????????????????????????????????????? | | ?????????????????????????????????????????????????? | | ??????????????#######????????????????????????????? | | ?????????????? #????????????????????????????? | | #????????????? ##???###?????????????????????? | | #????????????? #???# #????????????????????? | | ????????????## #### #???????????????????? | | ??####?????## ####???????????????? | | ?## ##????# ?? ##??????????????? | | ?# ##??## "#?????????# ##?????????????? | | ## ##?#" "###???????# #?????????????? | | ##?# ;# ???????# # #?????????????? | | #?# ; ##?????##?# # ##?????????????? | | ##### ### # ##???????# # ##??????????????? | | ???## ## ## ##??????# # #???????????????? | | ???# #?#; ##????## # #???????????????? | | ???# ## ##??# ##???# # #???????????????? | | ???# ### ###;# ##### ##??????????????? | | ???###### BB !%!% # #??????????????? | | #####??# BB =@ #??????????????? | | #??# ###### ;## ##??????????????? | | ##?## ##????# ### ##???????????????? | | #### #???# ### #???????????????? | | ## ##?# ###?## # #???????????????? | | #?## #????## #???????????????? | | #??## #??????## #???????????????? | | ### #??# ##????????##???????????????? | | #######?# ###???????????????????????????? | | #???????# #????????????????????????????? | | ##?????? #???????????????????????????? | | #????? ## #??????????????????????????? | | #???? #?###??????????????????????????? | | #??? #??????????????????????????????? | | ##?? #?????????????????????????????? | | ##?? ## #????????????????????????????? | | #?? ?## ????????????????????????????? | | ???? ??? ????????????????????????????? | | ????? #??? #####????????????????????????????? | | ??????? #???? ###????????????????????????????????? | | ?????????????#???????????????????????????????????? | | ?????????????????????????????????????????????????? | | ?????????????????????????????????????????????????? | | ?????????????????????????????????????????????????? | | ?????????????????????????????????????????????????? | +----------------------------------------------------+ Best States ------------- Heat Dissipation 35 Energy Generation 18 Energy Capacity 300 Matter Stores 300 Matter Capacity 300 Sight Range 16 Robot Scan Range 30 Terrain Scan Density 10 Evasion (%) 40 Targeting Accuracy 5 Offensive Hacking 16 Item Schematics ----------------- None Robot Schematics ------------------ None Fabricated ------------ Nothing Alien Tech Used ----------------- None Achievements -------------- Robot Respite The One Challenges ------------ None Game ------ Seed DisruptionRemoteNanosword Manual? 0 Play Time 00:47:17 Cumulative 5.0 hours Start 2021.09.13 @ 17:51:30 End 2021.09.13 @ 18:40:07 Sessions 1 Manual Loads 0 Difficulty Rogue Special Mode None Game No. 5 Rogue 5 Adventurer 0 Explorer 0 Win Type - Total 0 Types 0/0/0/0/0/0/0/0/0 Lore% 9 Gallery% 9 Achievement% 12 Wizard Run 0 Options --------- ASCII 0 Keyboard 0 Movement Mouse Keybinds 0 Fullscreen 2 Font 24/Smallcaps Map View 76x50 Tactical HUD 0 Map Filters NONE Filters NONE Steam 1 RUN: dd77f2b0-51bd-4de7-9392-870f00214142